Cogmind - Beta 13 @@@ ROGUE MODE // 2024.04.05 @ 00:51:21 Player: desiring-machine Result: Destroyed by G-47 Trooper with Particle Gun Performance ------------- Evolutions (1) 500 Regions Visited (2) 400 Robots Destroyed (17) 85 Value Destroyed (430) 430 Prototype IDs (0) 0 Alien Tech Used (0) 0 Bonus (0) 0 TOTAL SCORE: 1415 Bonus ------- None Cogmind --------- Core Integrity 0/400 Matter 300/300 Energy 100/100 System Corruption 0% Temperature Cool (9) Movement Core (50) Location -9/Materials Parts ------- > --- POWER (2) -------- (None) > --- PROPULSION (3) --- (None) > --- UTILITY (2) ------ Visual Processing Unit > --- WEAPON (2) ------- Small Laser > --- INVENTORY (5) ---- Flight Unit EMP Blaster Peak State ------------ > --- POWER ------------ Improved Ion Engine Improved Ion Engine > --- PROPULSION ------- Light Treads Wheel Wheel > --- UTILITY ---------- Small Matter Pod Visual Processing Unit > --- WEAPON ----------- Beam Rifle Heavy Assault Rifle > --- INVENTORY -------- Sensor Array EM Pulse Gun Small Laser EMP Blaster [Rating: 14] Favorites ----------- Power Improved Ion Engine Engine Improved Ion Engine Propulsion Wheel Treads Light Treads Wheel Wheel Utility Visual Processing Unit Device Sensor Array Storage Small Matter Pod Processor Visual Processing Unit Weapon Assault Rifle Energy Gun Beam Rifle Ballistic Gun Assault Rifle Build | -11 -10 -9 ------- Run | Yrd Mat Mat Slots Evolved 2 | . . 2 Power 1 | . . 1 Propulsion 1 | . . 1 Utility . | . . . Weapon . | . . . Parts Attached 18 | 6 2 10 Power 4 | 1 . 3 Engine 4 | 1 . 3 Core . | . . . Reactor . | . . . Propulsion 3 | 2 . 1 Treads 1 | . . 1 Leg . | . . . Wheel 2 | 2 . . Hover . | . . . Flight . | . . . Utility 5 | 1 2 2 Device 2 | . 1 1 Storage 2 | 1 . 1 Processor 1 | . 1 . Hackware . | . . . Protection . | . . . Artifact . | . . . Weapon 6 | 2 . 4 Energy Gun 3 | . . 3 Energy Cannon . | . . . Ballistic Gun 3 | 2 . 1 Ballistic Cannon . | . . . Launcher . | . . . Special Weapon . | . . . Impact Weapon . | . . . Slashing Weapon . | . . . Piercing Weapon . | . . . Special Melee Weapon . | . . . Unidentified Prototypes . | . . . Parts Lost 7 | . . 7 Power 3 | . . 3 Propulsion 2 | . . 2 Utility 1 | . . 1 Weapon 1 | . . 1 Highest Loss Streak 3 | . . 3 To Critical Strikes . | . . . Average Slot Usage (%) 72 | . 77 70 Engine 16 | . 14 16 Wheel 18 | . 28 14 Device 5 | . 4 5 Storage 6 | . 9 5 Processor 9 | . 6 11 Energy Gun 7 | . . 10 Ballistic Gun 9 | . 14 7 Naked Turns . | . . . Heaviest Build 21 | 6 6 21 Greatest Support 20 | 20 20 20 Greatest Overweight (x) 6 | . . 6 Average Overweight (x) . | . . . Largest Inventory Capacity 5 | 5 5 5 Average Capacity 5 | 5 5 5 Most Carried 5 | 3 4 5 Average Carried 3 | 1 3 4 Final Capacity 5 | 5 5 5 Final Carried 4 | 3 4 2 Class Distribution -------------------- 59% | Mutant 40% | Scavenger-Mutant Dominant Class ---------------- Mutant | -10/Materials Scavenger-Mutant | -9/Materials Resources | -11 -10 -9 ----------- Run | Yrd Mat Mat Matter Collected 548 | 334 24 190 Remotely . | . . . Salvage Created 590 | 67 24 499 Parts 49 | 3 6 40 Haulers Intercepted . | . . . Recyclers Shooed . | . . . Parts Field Recycled . | . . . Retrieved Matter . | . . . Parts Self-Destructed . | . . . Prevented . | . . . Kills | -11 -10 -9 ------- Run | Yrd Mat Mat Combat Hostiles Destroyed 12 | 1 . 11 Guns 12 | 1 . 11 Classes Destroyed 6 | 2 1 3 Worker 2 | 1 . 1 Builder 1 | . . 1 Watcher 2 | . 2 . Swarmer 3 | . . 3 Grunt 4 | 1 . 3 Sentry 5 | . . 5 Best Kill Streak 5 | 1 1 5 Combat Bots Only 2 | 1 . 2 Max Kills in Single Turn 1 | 1 1 1 Gunslinging . | . . . Exploded . | . . . Melee . | . . . Uniques/NPCs Destroyed . | . . . Combat | -11 -10 -9 -------- Run | Yrd Mat Mat Hostile Shots Fired 120 | 2 5 113 Missed 35 | 1 2 32 Damage Taken 990 | 12 32 946 Core 413 | . . 413 Absorbed by Shields . | . . . Core Remaining (%) 100 | 100 100 . Volleys Fired 84 | 8 8 68 Largest 2 | 1 1 2 Hottest 79 | 20 20 79 Shots Fired 112 | 8 8 96 Gun 112 | 8 8 96 Cannon . | . . . Launcher . | . . . Special . | . . . Kinetic 52 | 8 8 36 Thermal 37 | . . 37 Explosive . | . . . Electromagnetic 23 | . . 23 Robot Hit Streak 12 | 5 3 12 Robot Miss Streak 4 | 1 2 4 Penetration Max . | . . . Secondary Targets . | . . . Shots Hit Robots 67 | 6 5 56 Core Hits 26 | 3 2 21 Critical Kills 1 | . . 1 Critical Parts Destroyed . | . . . Critical Strikes 2 | . . 2 Burn 1 | . . 1 Destroy 1 | . . 1 Melee Attacks . | . . . Impact . | . . . Slashing . | . . . Piercing . | . . . Sneak Attacks . | . . . Combat Hostiles . | . . . Follow-up Attacks . | . . . Damage Inflicted 962 | 75 69 818 Guns 958 | 75 69 814 Cannons . | . . . Explosions . | . . . Melee . | . . . Ramming 4 | . . 4 Kinetic 452 | 75 69 308 Thermal 326 | . . 326 Explosive . | . . . Electromagnetic 180 | . . 180 Impact . | . . . Slashing . | . . . Piercing . | . . . Highest Corruption . | . . . Average Corruption . | . . . Corruption Purged . | . . . Corruption Blocked . | . . . Overload Shots . | . . . Overflow Damage . | . . . Projectiles . | . . . Explosions . | . . . Melee . | . . . Knockbacks . | . . . Impact . | . . . Kinetic . | . . . Secondary . | . . . Self-Inflicted Damage 2 | . . 2 Shots . | . . . Rammed 1 | . . 1 Targets Rammed 1 | . . 1 Kicked . | . . . Crushed . | . . . Highest Temperature 270 | . . 270 Average Temperature 85 | . . 85 Received Heat Transfer 381 | 6 18 357 Siege Activations . | . . . Robots Corrupted . | . . . Combat Hostiles . | . . . Parts Fried . | . . . Impact Corruptions . | . . . Robots Melted . | . . . Combat Hostiles . | . . . Parts Melted . | . . . Heat Transferred 901 | . . 901 Parts Sabotaged . | . . . Parts Stolen . | . . . Parts Stripped . | . . . Power Chain Reactions . | . . . Alert | -11 -10 -9 ------- Run | Yrd Mat Mat Peak Influence 388 | 25 60 388 Initial 25 | . 16 25 Average 114 | 12 33 181 Maximum Alert Level 1 | . . 1 Low Security (%) 74 | 100 100 55 Level 1 25 | . . 44 Level 2 . | . . . Level 3 . | . . . Level 4 . | . . . Level 5 . | . . . High Security . | . . . Max Security . | . . . Squads Dispatched 2 | . 1 1 Investigation . | . . . Extermination . | . . . Reinforcement 2 | . 1 1 Assault . | . . . Garrison . | . . . Intercept . | . . . Searches Triggered . | . . . Construction Impeded . | . . . Haulers Reinforced . | . . . Active Scanning Responses . | . . . Cargo Convoy Interrupts . | . . . Stealth | -11 -10 -9 --------- Run | Yrd Mat Mat Distress Signals 2 | . . 2 Communications Jammed . | . . . Distress Signals . | . . . Times Spotted 25 | 1 5 19 Peak Tracking Total 6 | 1 3 6 Tactical Retreats 2 | . . 2 Traps | -11 -10 -9 ------- Run | Yrd Mat Mat Traps Triggered . | . . . Indirectly . | . . . Trap Hack Attempts . | . . . Triggered . | . . . Disarmed . | . . . Reprogrammed . | . . . Reused . | . . . Traps Extracted . | . . . Installed . | . . . Triggered . | . . . Machines | -11 -10 -9 ---------- Run | Yrd Mat Mat Machines Disabled . | . . . Max in Single Turn . | . . . Machines Repaired . | . . . Machines Dismantled . | . . . Machines Sabotaged . | . . . Overloaded Fab Kills . | . . . Hacking | -11 -10 -9 --------- Run | Yrd Mat Mat Machines Accessed 2 | . 1 1 Terminals 1 | . . 1 Fabricators . | . . . Repair Stations . | . . . Recycling Units 1 | . 1 . Scanalyzers . | . . . Garrison Access . | . . . Total Hacks 2 | . 1 1 Successful 2 | . 1 1 Failed . | . . . Catastrophic . | . . . Database Lockouts . | . . . Manual . | . . . Terminals 1 | . . 1 Fabricators . | . . . Repair Stations . | . . . Recycling Units 1 | . 1 . Scanalyzers . | . . . Garrison Access . | . . . Terminal Hacks 1 | . . 1 Record 1 | . . 1 Fabricator Hacks . | . . . Repair Station Hacks . | . . . Recycling Unit Hacks 1 | . 1 . Recycle Component 1 | . 1 . Scanalyzer . | . . . Garrison Access Hacks . | . . . Unauthorized Hacks . | . . . Terminals . | . . . Fabricators . | . . . Repair Stations . | . . . Recycling Units . | . . . Scanalyzers . | . . . Garrison Access . | . . . Data Cores Recovered . | . . . Used . | . . . Hacking Detections . | . . . Full Trace Events . | . . . Feedback Events . | . . . Feedback Blocked . | . . . Robot Schematics Acquired . | . . . Robots Built . | . . . Authchips . | . . . Time . | . . . Total Robot Build Rating . | . . . Part Schematics Acquired . | . . . Parts Built . | . . . Authchips . | . . . Time . | . . . Total Part Build Rating . | . . . Parts Repaired . | . . . Time . | . . . Parts Recycled 1 | . 1 . Recycled Matter . | . . . Retrieved Matter . | . . . Retrieved Components . | . . . Parts Scanalyzed . | . . . Part Schematics Acquired . | . . . Parts Damaged . | . . . Bothacking | -11 -10 -9 ------------ Run | Yrd Mat Mat Used RIF Installer . | . . . Robots Hacked . | . . . Non-combat . | . . . Combat . | . . . Robot Hacks Applied . | . . . Relay Couplers Released . | . . . Fabnet Peak Effective % . | . . . Robots Rewired . | . . . Allies Hacked . | . . . Hacks Repelled . | . . . Allies | -11 -10 -9 -------- Run | Yrd Mat Mat Total Allies . | . . . Largest Group . | . . . Highest-Rated Group . | . . . Highest-Rated Ally . | . . . Total Orders . | . . . Ally Attacks . | . . . Total Damage . | . . . Kills . | . . . Allies Corrupted . | . . . Allies Melted . | . . . Intel | -11 -10 -9 ------- Run | Yrd Mat Mat Robot Analysis Total . | . . . Derelict Logs Recovered . | . . . Drone Launches . | . . . Drone Recoveries . | . . . Exploration | -11 -10 -9 ------------- Run | Yrd Mat Mat Turns Passed 800 | 143 196 461 Spaces Moved 567 | 80 205 282 Core 32 | 17 . 15 Treads . | . . . Legs . | . . . Wheels 535 | 63 205 267 Hover . | . . . Flight . | . . . Fastest Speed 50 | 50 80 80 Average Speed 87 | 73 80 96 Slowest Speed 350 | 80 80 350 Overloaded Moves . | . . . Propulsion Burnouts . | . . . Robots Hopped . | . . . Cave-ins Triggered . | . . . Exploration Rate (%) 22 | 8 30 30 Regions Visited 2 Branch Regions . Pre-discovered Areas . | . . . Known Exits Taken . | . . . Unknown Exits Taken 2 | 1 1 . Scrap Searched . | . . . Spaces Dug . | . . . Terrain Destroyed . | . . . Melee . | . . . Projectile . | . . . AOE . | . . . Terrain Rammed . | . . . Walls Destroyed . | . . . Machines Disabled . | . . . Actions | -11 -10 -9 --------- Run | Yrd Mat Mat Total 766 | 156 229 381 Wait 65 | 54 11 . Move 565 | 79 204 282 Hop . | . . . Pick Up 20 | 8 3 9 Fast Attach . | . . . Attach 18 | 6 2 10 Detach 5 | 1 1 3 Swap . | . . . Drop 8 | . . 8 Fire 84 | 8 8 68 Melee . | . . . Ram 1 | . . 1 Kick . | . . . Crush . | . . . Escape Stasis . | . . . Rewire . | . . . Trap . | . . . Miscellaneous . | . . . Route ------- -11/Scrapyard -10/Materials -9/Materials (discovered 1 exit: [*Min]) History --------- Turn | Location | Event 2 | -11/Scrapyard | Met Revision 17 67 | -11/Scrapyard | Discovered new exit (range 8) 144 | -11/Scrapyard | Entered Materials 236 | -10/Materials | Discovered new exit (range 15) 318 | -10/Materials | Build established: Mutant 340 | -10/Materials | Entered another Materials area 340 | -9/Materials | Evolved 2 slots: Power x1, Propulsion x1 630 | -9/Materials | Discovered new exit (range 18) 671 | -9/Materials | Build established: Scavenger-Mutant 711 | -9/Materials | Core integrity fell below 50% 776 | -9/Materials | Core integrity fell below 20% 801 | -9/Materials | Destroyed by G-47 Trooper with Particle Gun Last Messages --------------- Dropped Beam Rifle. Dropped Sml. Matter Pod. Acquired 20 matter. W-16 Scout sends out distress signal. Slammed into K-01 Serf. Ramming works as a last resort when unarmed or blocked, but can have serious negative consequences. Wheel destroyed. Critical hit (Burn: +37). Y-45 Defender destroyed. G-34 Mercenary IFF system glitched. K-01 Serf collects debris. G-34 Mercenary destroyed. W-16 Scout sends out distress signal. K-01 Serf collects debris. EM Pulse Gun destroyed. Imp. Ion Engine destroyed. Sensor Array destroyed. G-34 Mercenary destroyed. Map ----- +----------------------------------------------------+ | ???????????????????????????????????????# #?????? | | ??????????????????????????????######???# #?????? | | ?????????????????????????????# ??# #?????? | | ?????????????????????????????# """ ?## ##????? | | ?????????????????????????????# """ # ! [#????? | | ?????????????????????????????# """ # %*[#????? | | ?????????????????????????????# = + [ !#????? | | ?????????????????????????????# """ # #????? | | ?????????????????????????????# """ # #????? | | ?????????????????????????????# """ ?## ####### | | ?????????????????????????????#= ??# # | | ??????????????????????#######?######???# + | | ??????????????????????# #??????????# # | | ??????????????????????# #??????????# # | | ??????????????????????# #??????????# #?##### | | ???????????????##?????#""" #??????????# ####### | | ??????????????##!!????#""" ############ =%! | | ??????????????#! ???#""" + % %[ [[## | | ??????????????# ??# ############ !#? | | ??????????##### ####+### #????## ####+##? | | ???????? #?????# #??????? | | ???????? #?????# #??????? | | ???????? #?????# #??????? | | ??????????## ###+######Y### #?????# #??????? | | ???????????????????????#gk! ## ##?????#+#??????? | | ???????????????????????#[@ #? #?????"" #??????? | | ???????????????????????# #?? #??? ""S #??????? | | ???????????????????????# #??? +?! "" #??????? | | ???????????????????????# #????# #??????? | | ???????????????????????# #????# #??????? | | ???????????????????????# #????? """ #??????? | | ???????????????????????# #?????? """ #??????? | | ???????????????????????# #????????""" #??????? | | ???????????????????????######????????? #??????? | | ???????????????????????????????????????###???????? | | ?????????????????????????????????????????????????? | | ?????????????????????????????????????????????????? | | ?????????????????????????????????????????????????? | | ?????????????????????????????????????????????????? | | ?????????????????????????????????????????????????? | | ?????????????????????????????????????????????????? | | ?????????????????????????????????????????????????? | | ?????????????????????????????????????????????????? | | ?????????????????????????????????????????????????? | | ?????????????????????????????????????????????????? | | ?????????????????????????????????????????????????? | | | | | | | | | +----------------------------------------------------+ Best States ------------- Heat Dissipation 28 Energy Generation 19 Energy Capacity 430 Matter Stores 350 Matter Capacity 350 Sight Range 18 Robot Scan Range 14 Terrain Scan Density 10 Evasion (%) 50 Item Schematics ----------------- None Robot Schematics ------------------ None Fabricated ------------ Nothing Alien Tech Used ----------------- None Achievements -------------- Crack Shot Challenges ------------ None Game ------ Seed ThermalBiocellArray Manual? 0 Play Time 00:16:46 Cumulative 1.2 hours Start 2024.04.05 @ 00:35:17 End 2024.04.05 @ 00:51:21 Sessions 1 Manual Loads 0 Difficulty Rogue Special Mode None Game No. 2 Rogue 2 Adventurer 0 Explorer 0 Win Type - Total 0 Types 0/0/0/0/0/0/0/0/0 Lore% 8 Gallery% 2 Achievement% 2 Wizard Run 0 Options --------- Layout 1 ASCII 0 Keyboard 0 Movement Numpad Keybinds 0 Fullscreen 1 Font 24/Smallcaps Map View 50x35 Zoom Use 0% Tactical HUD 0 Map Filters NONE Filters NONE Steam 0 RUN: d926c8e4-290c-4c44-a64d-12bdc495b914